{"text_format":"1","workbook":"xlsx","n_sheets":6,"sheets":["Objednávka","Verejné osvetlenie","Odberné miesta","Nemeraná spotreba","Zoznam subjektov","Výpočet PHZ"],"not_rendered":{"charts":0,"images":2,"macros":1,"external_links":0,"defined_names":1,"comments":5,"pivot_tables":0},"unopened":[],"bounds":{"document_bytes":16777216,"sheet_cells":100000,"rows_first":2000,"rows_last":500,"rows_between":2000,"halvings":0,"cell_chars":16384,"cell_head_chars":4096},"cells_cut":0,"cells_raw":0,"read":"whole","date_system":"1900"}

{"sheet":"Objednávka","index":0,"n_rows":112,"n_cols":36,"rows_kept":112,"cut":false,"hidden":true,"merged":[[4,3,4,4],[5,3,5,4],[0,5,0,7],[1,5,1,7],[2,3,2,4],[2,5,2,7],[3,3,3,4],[3,5,3,7],[7,5,7,7],[9,1,9,7],[11,6,11,7],[12,6,12,7],[13,1,14,1],[13,2,14,4],[13,6,13,7],[14,6,14,7],[15,1,16,1],[15,2,16,4],[15,6,15,7],[16,5,16,7],[17,2,17,4],[17,5,17,7],[18,2,18,4],[18,5,18,7],[19,2,19,4],[19,5,19,7],[20,2,20,4],[20,5,20,7],[21,2,21,4],[21,5,21,7],[43,1,43,3],[44,1,44,3],[45,1,45,3],[22,2,22,4],[22,5,22,7],[24,12,24,13],[28,1,28,3],[29,1,29,3],[30,1,30,3],[32,1,32,3],[24,1,24,7],[31,1,31,3],[31,6,32,7],[28,6,28,7],[33,6,33,7],[37,1,37,7],[39,1,39,2],[39,3,39,4],[39,6,39,7],[41,1,41,4],[42,1,42,3],[35,1,35,3],[51,1,51,3],[54,4,54,5],[55,4,55,5],[59,1,59,7],[61,1,61,5],[46,1,46,3],[47,1,47,3],[48,1,48,3],[52,1,52,3],[50,4,50,5],[56,4,56,5],[57,4,57,5],[51,4,51,5],[52,4,52,5],[54,1,55,3],[29,35,30,35],[102,1,102,7],[90,1,90,7],[91,1,91,7],[92,1,92,7],[93,1,93,7],[95,1,95,7],[96,1,96,7],[99,1,99,7],[100,1,100,7],[101,1,101,7],[84,1,84,7],[85,1,85,7],[86,1,86,7],[87,1,87,7],[88,1,88,7],[29,29,29,32],[89,1,89,7],[78,2,78,3],[79,1,79,7],[80,1,80,7],[81,1,81,7],[82,1,82,7],[83,1,83,7],[111,1,111,7],[103,1,103,7],[105,1,105,7],[107,1,107,7],[108,1,108,7],[109,1,109,7],[110,1,110,7],[29,34,30,34],[97,1,97,7],[98,1,98,7],[62,1,62,5],[63,1,63,5],[65,1,65,7],[67,1,67,3],[68,1,68,3],[69,1,69,3],[70,1,70,3],[72,1,73,1],[72,2,73,2],[67,4,71,7],[72,4,76,7],[74,1,75,3],[76,1,76,3],[49,1,49,3]]}
[null,null,null,"V.1.05 20.8.2023",null,"Dodávateľ odborných služieb:",null,null,null,null,null,null,null,null,null,null,0,{"$f":"IF(OR(S1=1,G55<0)=TRUE,IF(G55<0,1+(-1*G55),IF(G55>0.3,1-G55,1)),1)","v":1},0,null,null,null,null,null,null,null,{"$f":"IF(OR(G55<0,G55>0.3)=TRUE,1,0)","v":0}]
[null,null,null,null,null,"Slovenské centrum obstarávania, o. z."]
[null,null,null,"CENOVÁ PONUKA",null,"Sídlo: Podzámocká 67/6, Bojnice 972 01"]
[null,null,null,"odborných služieb",null,"Prevádzka (poštová adresa):"]
[null,null,null,"verejného obstarávania",null,"Hurbanovo námestie 46, 972 01 Bojnice"]
[null,null,null,"pre komoditu:",null,"IČO: 42260515","DIČ: 2023510313"]
[null,null,null,null,null,"IČ DPH: SK2023510313"]
[null,null,null,null,null,"IBAN: SLSP, a.s. SK0509000000005028332376"]
[]
[null,"Elektrická energia ako burzová komodita"]
[]
[null,null,null,null,null,"Číslo objednávky SCO (nevypĺňajte) "]
[null,"Objednávateľ:","Verejný obstarávateľ",null,null,"SCO ID "]
[null,"Inštitúcia",null,null,null,"Č. objednávky objednávateľa"]
[null,null,null,null,null,"IČO"]
[null,"Ulica, číslo ",null,null,null,"DIČ / IČ DPH",null,null,null,null,0,200]
[null,null,null,null,null,"Banka, IBAN:",null,null,null,null,3000,250]
[null,"Sídlo ",null,null,null,null,null,null,null,null,6000,300]
[null,"PSČ ",null,null,null,"Zodpovedná osoba:",null,null,null,null,9000,350]
[null,"Štatutárny zástupca ",null,null,null,"Meno:",null,null,null,null,12000,400,null,null,null,null,{"$f":"IF(E29=1,1,IF(E29=2,1.3,1.5))","v":1.3}]
[null,"Telefón ",null,null,null,"Telefon:",null,null,null,null,16000,450]
[null,"Mobil ",null,null,null,"Mobil:",null,null,null,null,null,{"$f":"LOOKUP(E33,K16:K21,L16:L21)","v":200}]
[null,"E-mail ",null,null,null,"E-mail:",null,null,null,null,null,{"$f":"IF(D40=\"Člen\",L22,L22*1.21)","v":242}]
[]
[null,"Týmto u Vás objednávame realizáciu verejného obstarávania na dodávateľa elektrickej energie pre našu inštitúciu"]
[]
[]
[]
[null,"Zadajte obdobie, na ktoré máte záujem zabezpečiť dodávatelia komodity (v rokoch)",null,null,2,{"$f":"IF(E29=1,\"rok\",IF(E29=2,\"roky\",\"roky\"))","v":"roky"},{"$f":"IF(E33<70000,\"Zákazka s nízkou hodnotou - nižšieho rozsahu\",IF(E33<180000,\"Zákazka s nízkou hodnotou - vyššieho rozsahu\",IF(E33<215000,\"Podlimitná zákazka\",\"Nadlimitná zákazka\")))","v":"Zákazka s nízkou hodnotou - nižšieho rozsahu"},null,null,null,{"$f":"IF(E33<70000,\"Zákazka s nízkou hodnotou\",IF(E33<221000,\"Podlimitná zákazka\",\"Nadlimitná zákazka\"))","v":"Zákazka s nízkou hodnotou"},null,null,null,null,null,null,null,null,null,null,null,null,null,null,null,"Údaje v žltom rámčeku a ani modré bunky v stĺpci M klient nevidí"]
[null,{"$f":"\"Celkový predpokladaný finančný objem na dodávku s distribúciou pre rok \" &IF(YEAR(H30)=1900,2017,YEAR(H30))","v":"Celkový predpokladaný finančný objem na dodávku s distribúciou pre rok 2024"},null,null,{"$f":"'Výpočet PHZ'!C15","v":0},"€ bez DPH","Počnúc dňom: ","2024-01-01",null,null,4,"Ing. Miloš Trnavský\n+421 903 800 684\nobchod@i-sco.sk",null,null,null,null,null,null,null,null,null,null,null,null,null,null,null,null,1.21,"Zákazka s nízkou hodnotou do:",null,null,null,"Podlimit:","Nadlimit","Aktívna cena"]
[null,{"$f":"\"Celkový predpokladaný finančný objem na dodávku s distribúciou pre rok \"&IF(YEAR(H30)=1900,2018,YEAR(H30)+1)","v":"Celkový predpokladaný finančný objem na dodávku s distribúciou pre rok 2025"},null,null,{"$f":"'Výpočet PHZ'!D15","v":0},"€ bez DPH","Výpoved. lehota:","bez výpovednej lehoty",null,null,1,"Ing. Ľuboš Babarík\n+421 903 803 306\nobchod@i-sco.sk",null,null,null,null,null,null,null,null,null,null,null,null,null,null,null,"Názov","Číslo riadku",10000,40000,70000,180000,215000]
[null,{"$f":"\"Celkový predpokladaný finančný objem na dodávku s distribúciou pre rok \"&IF(YEAR(H30)=1900,2019,YEAR(H30)+2)","v":"Celkový predpokladaný finančný objem na dodávku s distribúciou pre rok 2026"},null,null,{"$f":"'Výpočet PHZ'!E15","v":0},"€ bez DPH","Údaje o výpovednej lehote \ndôkladne skontrolovať!",null,null,null,2,"Ing.Zdenko Bičár\n+421 914 341 332\nobchod@i-sco.sk",null,null,null,null,null,null,null,null,null,null,null,null,null,null,null,{"$f":"LEFT($B$43,20)","v":"1) Odborná analýza, "},{"$f":"ROW($B$43)","v":43},88,176,249,398,440,470,{"$f":"IF($E$33<=$AD$31,AD32,IF($E$33<=$AE$31,AE32,IF($E$33<=$AF$31,AF32,IF($E$33<$AG$31,AG32,IF($E$33<$AH$31,AH32,AI32)))))","v":88}]
[null,"Predpokladaný finančný objem na obstarávanú komoditu s distribúciou spolu",null,null,{"$f":"'Výpočet PHZ'!C8","v":0},"€ bez DPH",null,null,null,null,3,"Ing. Vladimír Fufaľ\n+421 911 803 102\nobchod@i-sco.sk",null,null,null,null,null,null,null,null,null,null,null,null,null,null,null,{"$f":"LEFT($B$44,20)","v":"2) Vypracovanie rámc"},{"$f":"ROW($B$44)","v":44},79,98,112,137,150,169,{"$f":"IF($E$33<=$AD$31,AD33,IF($E$33<=$AE$31,AE33,IF($E$33<=$AF$31,AF33,IF($E$33<$AG$31,AG33,IF($E$33<$AH$31,AH33,AI33)))))","v":79}]
[null,null,null,null,null,null,null,null,null,null,null,{"$f":"VLOOKUP(I40,$K$30:$L$33,2,0)","v":"Ing. Ľuboš Babarík\n+421 903 803 306\nobchod@i-sco.sk"},null,null,null,null,null,null,null,null,null,null,null,null,null,null,null,{"$f":"LEFT($B$45,20)","v":"3) Vypracovanie súťa"},{"$f":"ROW($B$45)","v":45},99,154,236,365,400,449,99]
[null,null,null,null,null,null,null,null,null,null,null,null,null,null,null,null,null,null,null,null,null,null,null,null,null,null,null,{"$f":"LEFT($B$46,20)","v":"4) Počet odberných m"},{"$f":"ROW($B$46)","v":46},18,18,18,18,18,18,18]
[null,{"$f":"IF(E29=1,\"Celková spotreba za obstarávané obdobie\",IF(E29=2,\"Celková spotreba za obstarávané obdobia\",\"Celková spotreba za obstarávané obdobia\"))","v":"Celková spotreba za obstarávané obdobia"},null,null,{"$f":"IF('Výpočet PHZ'!B8=0,\"\",'Výpočet PHZ'!B8)","v":""},"MWh",null,null,null,null,null,null,null,null,null,null,null,null,null,null,null,null,null,null,null,null,null,{"$f":"LEFT($B$47,20)","v":"5) Počet ďalších prá"},{"$f":"ROW($B$47)","v":47},308,308,308,308,308,308,308]
[null,null,null,null,null,null,null,null,null,null,null,null,null,null,null,null,null,null,null,null,null,null,null,null,null,null,null,{"$f":"LEFT($B$48,20)","v":"6) Sledovanie komodi"},{"$f":"ROW($B$48)","v":48},22,28,33,43,47,47,22]
[null,"Upozornenie!!! Finančný objem obsahuje celkovú cenu elektrickej energie vrátane ceny za distribúciu elektriny vrátane prenosu elektriny a strát pri prenose elektriny, ostatných regulovaných položiek v zmysle rozhodnutí Úradu pre reguláciu sieťových odvetví, odvodu do Národného jadrového fondu a spotrebnej dane.",null,null,null,null,null,null,null,null,null,null,null,null,null,null,null,null,null,null,null,null,null,null,null,null,null,{"$f":"LEFT($B$49,20)","v":"7) Pevná sadzba za r"},{"$f":"ROW($B$49)","v":49},189,189,189,189,330,330,189]
[null,null,null,null,null,null,null,null,null,null,null,null,null,null,null,null,null,null,null,null,null,null,null,null,null,null,null,{"$f":"LEFT($B$50,20)","v":"8) Komplexné riadeni"},{"$f":"ROW($B$50)","v":50},88,88,88,88,100,120,88]
[null,"Člen SCO / Partner SCO:",null,"Partner",null,"Zodpovedný obchodný \nmanažér SCO:",{"$f":"L34","v":"Ing. Ľuboš Babarík\n+421 903 803 306\nobchod@i-sco.sk"},null,1,"2) Vypracovanie súťažných podkladov (SP) pre verejné obstarávanie",null,null,null,null,null,null,null,null,null,null,null,null,null,null,null,null,null,{"$f":"OR(G55>0.3,G55<0)","v":false},{"$f":"OR(AND(AB40=TRUE,S1=1)=TRUE,AD40=TRUE)","v":false},{"$f":"G55<0","v":false}]
[null,null,null,null,null,null,null,null,null,"2) Metodiky na prieskum trhu"]
[null,"Objednaná položka",null,null,null,{"$f":"IF(C51=0,\"Jednotková cena\",\"Jednotková cena bez DPH\")","v":"Jednotková cena bez DPH"},{"$f":"IF(C51=0,\"Celková cena\",\"Celková cena bez DPH\")","v":"Celková cena bez DPH"},"Celková cena s DPH"]
[null,"1) Odborná analýza, návrh metodiky pre danú komoditu a návrh riešenia verejného obstarávania",null,null,"áno",{"$f":"ROUND($R$1*($Q$20*AJ32),0)","v":114},{"$f":"IF(E43=\"áno\",F43,0)","v":114},{"$f":"G43*1.2","v":136.79999999999998},null,"7) Pevná sadzba za realizáciu e-aukcie"]
[null,{"$f":"IF(G29=\"Zákazka s nízkou hodnotou\",AA44,AA45)","v":"2) Vypracovanie rámcovej dohody podľa Obchodného zákonníka, v zmysle Zákona č. 343/2015 Z. z. o verejnom obstarávaní a o zmene a doplnení niektorých zákonov"},null,null,"áno",{"$f":"ROUND($R$1*($Q$20*AJ33),0)","v":103},{"$f":"IF(E44=\"áno\",F44,0)","v":103},{"$f":"G44*1.2","v":123.6},null,"7) Pevná sadzba za realizáciu prieskumu trhu formou e-aukcie",null,null,null,null,null,null,null,null,null,null,null,null,null,null,null,null,"2) Vypracovanie výzvy na predkladanie ponúk, stanovenie podmienok pre proces verejného obstarávania v zmysle zákona č. 343/2015 Z.z. a podmienok dodávateľskej zmluvy pre verejného obstarávateľa v zmysle Obchodného zákonníka SR "]
[null,"3) Vypracovanie súťažných podkladov (SP) pre verejné obstarávanie / príležitostné spoločné obstarávanie",null,null,"áno",129,{"$f":"IF(E45=\"áno\",F45,0)","v":129},154.79999999999998,null,"8) Komplexné riadenie procesu verejného obstarávania / príležitostného spoločného obstarávania",null,null,null,null,null,null,null,null,null,null,null,null,null,null,null,null,"2) Vypracovanie rámcovej dohody podľa Obchodného zákonníka, v zmysle Zákona č. 343/2015 Z. z. o verejnom obstarávaní a o zmene a doplnení niektorých zákonov"]
[null,"4) Počet odberných miest - zahrnutie do SP v € / 1 OM",null,null,{"$f":"COUNTA(Tabuľka2[EIC kód],Odberné_miesta[EIC kód],Tabuľka3[EIC kód])","v":0},23,{"$f":"E46*F46","v":0},0,null,"8) Komplexné riadenie riadenie procesu prieskumu trhu"]
[null,"5) Počet ďalších právnych subjektov v zriaďovateľskej právomoci (s výnimkou objednávateľa)",null,null,null,400,{"$f":"E47*F47","v":0},0]
[null,"6) Sledovanie komoditnej burzy PXE a písomné stanovenie burzového dňa pre určenie ceny elektrickej energie v optimálnom čase na zazmluvneného dodávateľa a informovanie objednávateľa",null,null,"áno",29,{"$f":"IF(E48=\"áno\",F48,0)","v":29},34.799999999999997,null,"Faktúra číslo 2 za položky 2 - 7 bude vystavená po zverejnení oznámenia vo vestníku VO"]
[null,{"$f":"IF(E33>=1000,J43,J44)","v":"7) Pevná sadzba za realizáciu prieskumu trhu formou e-aukcie"},null,null,"áno",{"$f":"AJ38","v":189},{"$f":"IF(E49=\"áno\",F49,0)","v":189},226.79999999999998,null,"Faktúra číslo 2 bude vystavená za položky 2 - 9 po ukončení VO"]
[null,{"$f":"IF(E33>=1000,J45,J46)","v":"8) Komplexné riadenie riadenie procesu prieskumu trhu"},null,null,"áno",114,{"$f":"IF(E50=\"áno\",F50,0)","v":114},136.79999999999998]
[null,"Výška DPH:",0.2,null,"Celková cena objednávky:",null,{"$f":"SUM(G43:G50)","v":678},813.6]
[null,"Objednávateľ berie na vedomie kritickú situáciu na energetických burzách aktuálny nedostatok energetických",null,null,"Cena objednávky prepočítaná na jeden rok:",null,{"$f":"G56/E29","v":339},{"$f":"G52*1.2","v":406.8}]
[null," komodít a je si vedomý, že vysúťažené ceny môžu byť vyššie ako súčasné zazmluvnené ceny. ",null,null,"Priemerná cena na 1 právny subjekt za rok:",null,{"$f":"G58","v":339},{"$f":"H58","v":406.8}]
[]
[null,"Objednávateľ, ak sa nedohodne inak, zodpovedá za včasné a správne vypovedanie zmluvy\nso súčastným dodávateľom. ",null,null,"Výška zľavy:",null,{"$f":"SUM(IF(D40=\"Člen\",0.21,0)+Q1/100)","v":0},null,null,null,null,null,{"$f":"G55","v":0}]
[null,null,null,null,"Celková suma objednávky po zľave:",null,{"$f":"G51*(1-G55)","v":678},{"$f":"(G56*$C$51)+G56","v":813.6}]
[null,null,null,null,"Cena objednávky prepočítaná na jeden rok:",null,{"$f":"G56/E29","v":339},{"$f":"G57*1.2","v":406.8}]
[null,null,null,null,"Priemerná cena na 1 právny subjekt za rok:",null,{"$f":"(G56/(E47+1)/E29)","v":339},{"$f":"G58*1.2","v":406.8}]
[]
[null,"Dodávateľ je platcom DPH. Splatnosť faktúr je 7 dní odo dňa ich doručenia."]
[null,null,null,null,null,null,"Cena bez DPH","Cena s DPH"]
[null,{"$f":"\"Faktúra číslo 1 za položku \"&IF(G29=\"Zákazka s nízkou hodnotou - nižšieho rozsahu\",\"1 a 2\",1)&\" bude vystavená na objednávateľa ihneď po spracovaní dát a potvrdení akceptácie objednávky dodávateľom\"","v":"Faktúra číslo 1 za položku 1 a 2 bude vystavená na objednávateľa ihneď po spracovaní dát a potvrdení akceptácie objednávky dodávateľom"},null,null,null,null,{"$f":"IF($AC$40=TRUE,IF($K$29=\"Zákazka s nízkou hodnotou\",SUM(G43:G44),G43),IF(K29=\"Zákazka s nízkou hodnotou\",SUM(G43:G44)*(1-$G$55),G43*(1-$G$55)))","v":217},{"$f":"G62*1.2","v":260.39999999999998}]
[null,{"$f":"\"Faktúra číslo 2 za položky \"&IF(G29=\"Zákazka s nízkou hodnotou - nižšieho rozsahu\",\"3 - 8\",\"2 - 6\")&\" bude vystavená po \"&IF(G29=\"Zákazka s nízkou hodnotou - nižšieho rozsahu\",\"po zaslaní výzvy na predkladanie ponúk pre zákazku s nízkou hodnotou a jej vyhodnotením.\",\"zverejnení oznámenia vo vestníku VO.\")","v":"Faktúra číslo 2 za položky 3 - 8 bude vystavená po po zaslaní výzvy na predkladanie ponúk pre zákazku s nízkou hodnotou a jej vyhodnotením."},null,null,null,null,{"$f":"IF($AC$40=TRUE,IF($K$29=\"Zákazka s nízkou hodnotou\",SUM(G45:G50),SUM(G44:G48)),IF(K29=\"Zákazka s nízkou hodnotou\",SUM(G45:G50)*(1-$G$55),SUM(G44:G48)*(1-$G$55)))","v":461},{"$f":"G63*1.2","v":553.19999999999993}]
[null,"Faktúra číslo 3 za položky 7 - 8 bude vystavená po ukončení VO alebo po vyhodnotení výsledkov zákazky s nízkou hodnotou (po úhrade faktúry bude objednávateľovi odoslaná kompletná dokumentácia verejného obstarávania)",null,null,null,null,{"$f":"IF($AC$40=TRUE,IF($K$29=\"Zákazka s nízkou hodnotou\",0,SUM(G49:G50)),IF(K29=\"Zákazka s nízkou hodnotou\",0,SUM(G49:G50)*(1-$G$55)))","v":0},{"$f":"(G64*$C$51)+G64","v":0}]
[]
[null,"Súčasťou tejto objednávky je tabuľka odberných miest a predpokladaných spotrieb na na obstatávané obdobie."]
[null,"Dolupodpísaný objednávateľ (štatutárny orgán objednávateľa) čestne vyhlasujem, že:"]
[null,"1/ Všetky informácie obsiahnuté v objednávke a v príkaznej zmluve sú úplné, pravdivé a správne.",null,null,"Pečiatka a podpis za verejného obstarávateľa:"]
[null,"2/ Som si vedomý skutočnosti, že nesiem úplnú zodpovednosť za následky uvedenia nesprávnych údajov."]
[null,"3/ Svojím podpisom súhlasím so všeobecnými obchodnými podmienkami uvedenými na zadnej strane \n     tejto objednávky."]
[null,"4/ Akceptujem posielanie faktúr a potvrdenie objednávky elektronickou formou."]
[]
[null,"Dňa:",null,null,"Pečiatka a podpis za dodávateľa odborných služieb (SCO):"]
[]
[null,"Pred odoslaním podpísanej objednávky poštou, Vás prosíme o jej zoscanovanie a zaslanie na centrálu SCO e-mailom na obchod@i-sco.sk"]
[]
[null,"Ďakujeme za spoluprácu."]
[]
[]
[null,"Všeobecné obchodné podmienky"]
[]
[null,"Práva a povinnosti Dodávateľa odborných služieb"]
[]
[null,"Práva a povinnosti Slovenského centra obstarávania – ďalej len “Dodávateľ odborných služieb” príležitostného spoločného obstarávania."]
[]
[null,"1. Dodávateľ odborných služieb sa zaväzuje príležitostné spoločné obstarávania vykonávať v zmysle aktuálnej platnej legislatívy Európskej únie a Slovenskej republiky, najmä však podľa zákona č. 343/2015 Z.Z o verejnom obstarávaní a o zmene a doplnení niektorých zákonov v znení neskorších predpisov. "]
[null,"2. Dodávateľ odborných služieb sa zaväzuje svojimi administrátorskými zásahmi do výberových konaní v príležitostných spoločných obstarávaniach nezvýhodňovať ktoréhokoľvek dodávateľa pred ostatnými dodávateľmi. "]
[null,"3. Dodávateľ odborných služieb je povinný bezodkladne informovať všetkých účastníkov o udalostiach, ktoré by mohli obmedziť riadny priebeh príležitostného spoločného obstarávania a následne podniknúť adekvátne kroky vedúce k ich náprave. "]
[null,"4. Dodávateľ odborných služieb sa zaväzuje poskytnúť službu na základe objednávky na príležitostné spoločné obstarávanie v dohodnutom rozsahu a kvalite, nezodpovedá však za vznik udalostí, ktoré akýmkoľvek spôsobom znemožnia účastníkovi riadne zapojenie sa do výberového konania a boli zavinené treťou osobou. Dodávateľ odborných služieb tiež nezodpovedá za kvalitu a dostupnosť internetových služieb účastníka. "]
[null,"5. V prípade realizácie verejného obstarávania podľa § 117 Zákona 343/2015 Z. z. a jeho novelizácií sa proces verejného obstarávania bude realizovať bez rámcovej dohody. "]
[null,"6. Dodávateľ odborných služieb sa zaväzuje, že vhodnými opatreniami zabezpečí dôvernosť všetkých údajov získaných od účastníka a bude ich používať len na účely spojené s príležitostným spoločným obstarávaním, ku ktorému zadávateľ svojou objednávkou pristupuje, resp. pre svoje interné potreby. "]
[null,"7. Dodávateľ odborných služieb zodpovedá za náhradu škôd spôsobených porušením zmluvných, resp. mimozmluvných podmienok len v prípade, že k nemu došlo úmyselne z jeho strany, pokiaľ nie je v týchto podmienkach stanovené inak.   "]
[]
[null,"Práva a povinnosti objednávateľa "]
[]
[null,"1. Objednávateľ bude poskytovať súčinnosť potrebnú k uskutočneniu predmetu plnenia Dodávateľom odborných služieb, ktorou je  včasné poskytnutie úplných informácií (najneskôr 14 dní pred zverejnením súťažných podkladov príležitostného spoločného obstarávania) podľa pokynov poskytovateľa týkajúcich sa špecifikácií, cien, objemu, kvality predmetu nákupu alebo predávaného majetku a iných informácií potrebných k príprave a uskutočneniu komplexného procesu príležitostného spoločného obstarávania. Objednávateľ sa zaväzuje dodržať všetky doporučené termíny, metodické postupy a pokyny potrebné pre prípravu a realizáciu príležitostného spoločného obstarávania, ktoré odporučí Dodávateľovi odborných služieb. "]
[null,"2. Objednávateľ zodpovedá za správnosť ním poskytnutých údajov týkajúcich sa predmetu príležitostného spoločného obstarávania a obchodných podmienok súvisiacich s výberovým konaním. Neoddeliteľnou súčasťou tejto objednávky je zmluva o Príležitostnom spoločnom obstarávaní podľa § 16 zákona č. 343/2015 Zb. "]
[null,"3. Objednávateľ plne zodpovedá za prípadnú škodu, ktorá vznikne Dodávateľovi odborných služiebovi, resp. dodávateľovi v súvislosti s ním umožneným prístupom tretej osoby k informáciám týkajúcich sa príležitostného spoločného obstarávania. "]
[null,"4. Objednávateľ má právo vykonať zmenu v špecifikácii predmetu príležitostného spoločného obstarávania v jeho priebehu len v prípade, že táto zmena neovplyvní riadny priebeh výberového konania a je plne v súlade so zákonom 343/2015 Z.z. "]
[null,"5. Výsledky príležitostného spoločného obstarávania nie sú pre objednávateľa záväzné v prípade, ak je ponuka úspešného uchádzača v rozpore s podmienkami uvedenými v súťažných podkladoch, resp. vo výzve na účasť. "]
[null,"6. Objednávateľ je povinný uhradiť dohodnutú cenu za poskytovanú službu na základe ceny, ktorá vzišla pri vyplnení objednávky."]
[null,"7. V prípade, že konaním objednávateľa vznikne Dodávateľovi odborných služiebovi, resp. dodávateľovi škoda, je tento oprávnený nárokovať si u objednávateľa jej náhradu v plnej výške. "]
[null,"8. Objednávateľ dáva Dodávateľovi odborných služiebovi súhlas k použitiu jeho e-mailových adries uložených v databáze Slovenského centra obstarávania k zasielaniu e-mailov súvisiacich s činnosťou združenia."]
[null,"9. Objednávateľ sa zaväzuje neposkytovať tretím stranám know–how, ktoré Dodávateľ odborných služieb používa. V prípade preukázania porušenia tohto bodu zmluvy je objednávateľ povinný uhradiť Dodávateľovi odborných služiebovi vzniknutú škodu v plnej výške a k tomu sankciu vo výške 7.000 €"]
[]
[null,"Záverečné ustanovenia "]
[]
[null,"1. Právne vzťahy medzi Dodávateľom odborných služieb a účastníkmi príležitostných spoločných obstarávaní sa riadia právnym poriadkom Slovenskej republiky. "]
[null,"2. Akékoľvek zmeny a doplnky týchto všeobecne platných obchodných podmienok  možno urobiť len písomnou formou, inak sú neplatné. "]
[null,"3. Zmluvné strany sa zaväzujú, že všetky prípadné spory, ktoré vzniknú v súvislosti s touto zmluvou, budú riešiť vzájomnou dohodou s cieľom - zachovať dobré obchodné vzťahy."]
[null,"4. Zmluvné strany svojimi podpismi potvrdzujú, že sú s jej obsahom oboznámené a že túto objednávku uzatvárajú dobrovoľne na základe svojej slobodnej vôle, nie v tiesni, ani za nápadne nevyhovujúcich podmienok."]
[null,"5. Tieto Všeobecné obchodné podmienky pre príležitostné spoločné obstarávanie sú platné a účinné od 18.4.2016 v plnom rozsahu pre všetkých účastníkov príležitostných spoločných obstarávaní realizovaných  Slovenským centrom obstarávania. V prípade, že nastane zmena v týchto podmienkach v priebehu niektorého príležitostného spoločného obstarávania vyhláseného prostredníctvom Slovenského centra obstarávania, tá sa na prebiehajúce výberové konanie nevzťahuje. "]

{"sheet":"Verejné osvetlenie","index":1,"n_rows":31,"n_cols":25,"rows_kept":31,"cut":false,"hidden":true,"merged":[[6,27,10,29],[15,0,17,0],[15,1,17,1],[15,2,17,2],[15,3,17,3],[15,4,17,4],[15,24,17,24],[15,21,16,21],[15,5,16,8],[9,2,9,6],[15,12,15,14],[16,12,16,14],[15,18,15,20],[16,18,16,20],[15,15,15,17],[16,15,16,17],[3,1,3,6],[4,1,4,6],[29,0,31,2],[15,22,16,23],[30,9,30,10],[30,12,30,13],[30,15,30,16],[6,2,6,6],[7,2,7,6],[10,2,10,6],[11,2,11,6],[8,2,8,6],[15,9,15,11],[16,9,16,11]]}
[]
[]
[]
[null,"Podklady o spotrebách elektrickej energie\n všetkých odberných miest"]
[null,"podklad pre výberové konanie na obstarávanie elektrickej energie"]
[]
[null,"Odberateľ:",{"$f":"IF(Objednávka!C14=0,\"\",Objednávka!C14)","v":""}]
[null,"Adresa: ",{"$f":"IF(Objednávka!C16=0,\"\",CONCATENATE(Objednávka!C16,\", \",Objednávka!C19,\" \",Objednávka!C18))","v":""}]
[null,"IČO:",{"$f":"IF(Objednávka!G15=0,\"\",Objednávka!G15)","v":""}]
[null,"Podklady vyplnil:"]
[null,"Telefonický kontakt:"]
[null,"Mailový kontakt:"]
[null,"Počet riadkov"]
[]
[]
["P.č.","Adresa miesta spotreby","Názov odberného miesta","EIC kód","Meno subjektu\n\n( vypisujte, iba ak obstarávate pre viac subjektov)","Súčastný dodávateľ a platné zmluvy.",null,null,null,{"$f":"\"Spotreba za rok \"&IF(MONTH(Objednávka!H30)=1,YEAR(Objednávka!H30)-2,YEAR(Objednávka!H30)-1)&\" v MWh\"","v":"Spotreba za rok 2022 v MWh"},null,null,{"$f":"\"Predpokladaná spotreba \"&IF(MONTH(Objednávka!H30)=1,\" na rok \"&YEAR(Objednávka!H30),\" za obdobie 1.\"&MONTH(Objednávka!H30)&\".\"&YEAR(Objednávka!H30)&\" - 31.12.\"&YEAR(Objednávka!H30))&\" v MWh\"","v":"Predpokladaná spotreba  na rok 2024 v MWh"},null,null,{"$f":"\"Predpokladaná spotreba za rok \"&YEAR(Objednávka!H30)+1&\" v MWh\"","v":"Predpokladaná spotreba za rok 2025 v MWh"},null,null,{"$f":"\"Predpokladaná spotreba za rok \"&YEAR(Objednávka!H30)+2&\" v MWh\"","v":"Predpokladaná spotreba za rok 2026 v MWh"},null,null,"Napätie","Nízke napätie",null,"Typ merania\nA-priebehové meranie \n     s diaľkovým odpočtom\nB-priebehové meranie \nbez ďialkového odpočtu\nC-bez priebehového merania"]
[null,null,null,null,null,null,null,null,null,"(Informatívne údaje)",null,null,"(záväzné údaje do súťažných podkladov)",null,null,"(záväzné údaje do súťažných podkladov)",null,null,"(záväzné údaje do súťažných podkladov)"]
[null,null,null,null,null,"Meno\ndodávateľa","Trvanie súčasnej zmluvy do","Výpovedná lehota","Dátum účinnosti novej dodávky","JT","VT","NT","JT","VT","NT","JT","VT","NT","JT","VT","NT","NN","Hodnota ističa","Distribučná tarifa"]
["P.č.","Adresa miesta spotreby","Názov odberného miesta","EIC kód","Meno subjektu","Meno\ndodávateľa","Trvanie súčasnej zmluvy do","Výpovedná lehota","Dátum účinnosti novej dodávky","JT","VT ","NT","JT/1","VT/1","NT/1","JT/2","VT/2","NT/2","JT/3","VT/3","NT/3","Napätie","Hodnota ističa","Distribučná tarifa","Typ merania"]
[1]
[2]
[3]
[4]
[5]
[6]
[7]
[{"$f":"A26+1","v":8}]
[9]
[10]
["Pre pridanie ďalších riadkov, do bunky \"C13\" vpíšte počet riadkou a kliknite na tlačidlo\" Pridaj riadky\"",null,null,null,null,null,null,null,null,{"$f":"SUM(Tabuľka2[JT])","v":0},{"$f":"SUM(Tabuľka2[[VT ]])","v":0},{"$f":"SUM(Tabuľka2[NT])","v":0},{"$f":"SUM(Tabuľka2[JT/1])","v":0},{"$f":"SUM(Tabuľka2[VT/1])","v":0},{"$f":"SUM(Tabuľka2[NT/1])","v":0},{"$f":"SUM(Tabuľka2[JT/2])","v":0},{"$f":"SUM(Tabuľka2[VT/2])","v":0},{"$f":"SUM(Tabuľka2[NT/2])","v":0},{"$f":"SUBTOTAL(109,Tabuľka2[JT/3])","v":0},{"$f":"SUBTOTAL(109,Tabuľka2[VT/3])","v":0},{"$f":"SUBTOTAL(109,Tabuľka2[NT/3])","v":0}]
[null,null,null,null,null,null,null,null,null,"spolu za všetky tarify",null,{"$f":"J30+K30+L30","v":0},"spolu za všetky tarify",null,{"$f":"M30+N30+O30","v":0},"spolu za všetky tarify",null,{"$f":"P30+Q30+R30","v":0},"Spolu za všetky tarify",null,{"$f":"S30+T30+U30","v":0}]

{"sheet":"Odberné miesta","index":2,"n_rows":30,"n_cols":43,"rows_kept":30,"cut":false,"hidden":false,"merged":[[16,16,16,21],[15,23,15,28],[16,23,16,28],[16,30,16,35],[15,30,15,35],[3,1,3,6],[4,1,4,6],[6,2,6,6],[7,2,7,6],[15,3,17,3],[15,4,17,4],[15,5,16,8],[15,1,17,1],[15,2,17,2],[8,2,8,6],[15,9,16,14],[9,2,9,6],[29,0,31,2],[10,43,11,44],[15,42,17,42],[15,40,16,41],[15,38,16,39],[15,37,16,37],[15,29,16,29],[15,22,16,22],[15,15,16,15],[10,2,10,6],[11,2,11,6],[15,0,17,0],[15,36,16,36],[15,16,15,21]]}
[]
[]
[]
[null,"Podklady o spotrebách elektrickej energie\n všetkých odberných miest"]
[null,"podklad pre výberové konanie na obstarávanie elektrickej energie"]
[null,null,null,null,null,null,null,null,"JT","Jednotarif",null,"NN","nízke napätie"]
[null,"Odberateľ:",{"$f":"IF(Objednávka!C14=0,\"\",Objednávka!C14)","v":""},null,null,null,null,null,"VT","vysoký tarif",null,"VN","vysoké napätie"]
[null,"Adresa: ",{"$f":"IF(Objednávka!C16=0,\"\",CONCATENATE(Objednávka!C16,\", \",Objednávka!C19,\" \",Objednávka!C18))","v":""},null,null,null,null,null,"NT","nízky tarif",null,"EIC kód","viď. zmluva"]
[null,"IČO:",{"$f":"IF(Objednávka!G15=0,\"\",Objednávka!G15)","v":""}]
[null,"Podklady vyplnil:",null,null,null,null,null,null,"AKU NT","elektrické vykurovanie - nízky tarif"]
[null,"Telefonický kontakt:",null,null,null,null,null,null,"AKU VT","elektrické vykurovanie - vysoký tarif"]
[null,"Mailový kontakt:",null,null,null,null,null,null,"WT","víkendový tarif (víkendy a sviatky)"]
[null,"Počet riadkov"]
[]
[]
["P. č.","Adresa miesta spotreby","Názov odberného miesta","EIC kód","Meno subjektu\n\n( vypisujte, iba ak obstarávate pre viac subjektov)","Súčastný dodávateľ a platné zmluvy. ",null,null,null,"Spotreba za rok 2022 v MWh\nInformatívne údaje",null,null,null,null,null,"Spotreba spolu",{"$f":"\"Predpokladaná spotreba \"&IF(MONTH(Objednávka!H30)=1,\" na rok \"&YEAR(Objednávka!H30),\" za obdobie 1.\"&MONTH(Objednávka!H30)&\".\"&YEAR(Objednávka!H30)&\" - 31.12.\"&YEAR(Objednávka!H30))&\" v MWh\"","v":"Predpokladaná spotreba  na rok 2024 v MWh"},null,null,null,null,null,"Spotreba spolu",{"$f":"\"Predpokladaná spotreba za rok \"&YEAR(Objednávka!H30)+1&\" v MWh\"","v":"Predpokladaná spotreba za rok 2025 v MWh"},null,null,null,null,null,"Spotreba spolu",{"$f":"\"Predpokladaná spotreba za rok \"&YEAR(Objednávka!H30)+2&\" v MWh\"","v":"Predpokladaná spotreba za rok 2026 v MWh"},null,null,null,null,null,"Spotreba spolu","Napätie","Vysoké napätie",null,"Nízke napätie",null,"Typ merania\nA-priebehové meranie \n     s diaľkovým odpočtom\nB-priebehové meranie \nbez ďialkového odpočtu\nC-bez priebehového merania"]
[null,null,null,null,null,null,null,null,null,null,null,null,null,null,null,null,"záväzné údaje do súťažných podkladov",null,null,null,null,null,null,"záväzné údaje do súťažných podkladov",null,null,null,null,null,null,"záväzné údaje do súťažných podkladov"]
[null,null,null,null,null,"Meno\ndodávateľa","Trvanie súčasnej zmluvy do","Výpovedná lehota","Dátum účinnosti novej dodávky","JT","VT","NT","WT","AKU/VT","AKU/NT","MWh","JT","VT","NT","WT","AKU/VT","AKU/NT","\nMWh","JT","VT","NT","WT","AKU/VT","AKU/NT","\nMWh","JT","VT","NT","WT","AKU/VT","AKU/NT","\nMWh","NN / VN","Rezervovaná kapacita","Maximálna rezervovaná kapacita","Hodnota ističa","Distribučná tarifa"]
["P.č.","Adresa miesta spotreby","Názov odberného miesta","EIC kód","Meno subjektu","Meno dodávateľa","Trvanie súčasnej zmluvy do","Výpovedná lehota","Dátum účinnosti novej dodávky","JT ","VT","NT","WT","AKU/VT","AKU/NT","Spotreba spolu 22","JT/1","VT/1","NT/1","WT/1","AKU/VT/1","AKU/NT/1","Spotreba spolu 1","JT/2","VT/2","NT/2","WT/2","AKU/VT/2","AKU/NT/2","Spotreba spolu/2","JT/3","VT/3","NT/3","WT/3","AKU/VT/3","AKU/NT/","Spotreba spolu/3","NN/VN","Rezervovaná kapacita","Maximálna rezervovaná kapacita","Hodnota ističa","Distribučná tarifa","Typ merania"]
[1,null,null,null,null,null,null,null,null,null,null,null,null,null,null,{"$f":"SUM(J20:O20)","v":0},null,null,null,null,null,null,{"$f":"SUM(Odberné_miesta[[#This Row],[JT/1]:[AKU/NT/1]])","v":0},null,null,null,null,null,null,{"$f":"SUM(X20:AC20)","v":0},null,null,null,null,null,null,{"$f":"SUM(AE20:AJ20)","v":0}]
[{"$f":"A20+1","v":2},null,null,null,null,null,null,null,null,null,null,null,null,null,null,0,null,null,null,null,null,null,{"$f":"SUM(Odberné_miesta[[#This Row],[JT/1]:[AKU/NT/1]])","v":0},null,null,null,null,null,null,0,null,null,null,null,null,null,0]
[3,null,null,null,null,null,null,null,null,null,null,null,null,null,null,0,null,null,null,null,null,null,{"$f":"SUM(Odberné_miesta[[#This Row],[JT/1]:[AKU/NT/1]])","v":0},null,null,null,null,null,null,0,null,null,null,null,null,null,0]
[4,null,null,null,null,null,null,null,null,null,null,null,null,null,null,0,null,null,null,null,null,null,{"$f":"SUM(Odberné_miesta[[#This Row],[JT/1]:[AKU/NT/1]])","v":0},null,null,null,null,null,null,0,null,null,null,null,null,null,0]
[5,null,null,null,null,null,null,null,null,null,null,null,null,null,null,0,null,null,null,null,null,null,{"$f":"SUM(Odberné_miesta[[#This Row],[JT/1]:[AKU/NT/1]])","v":0},null,null,null,null,null,null,0,null,null,null,null,null,null,0]
[6,null,null,null,null,null,null,null,null,null,null,null,null,null,null,0,null,null,null,null,null,null,{"$f":"SUM(Odberné_miesta[[#This Row],[JT/1]:[AKU/NT/1]])","v":0},null,null,null,null,null,null,0,null,null,null,null,null,null,0]
[{"$f":"A25+1","v":7},null,null,null,null,null,null,null,null,null,null,null,null,null,null,{"$f":"SUM(J26:O26)","v":0},null,null,null,null,null,null,{"$f":"SUM(Odberné_miesta[[#This Row],[JT/1]:[AKU/NT/1]])","v":0},null,null,null,null,null,null,0,null,null,null,null,null,null,0]
[{"$f":"A26+1","v":8},null,null,null,null,null,null,null,null,null,null,null,null,null,null,{"$f":"SUM(J27:O27)","v":0},null,null,null,null,null,null,{"$f":"SUM(Odberné_miesta[[#This Row],[JT/1]:[AKU/NT/1]])","v":0},null,null,null,null,null,null,0,null,null,null,null,null,null,0]
[{"$f":"A27+1","v":9},null,null,null,null,null,null,null,null,null,null,null,null,null,null,{"$f":"SUM(J28:O28)","v":0},null,null,null,null,null,null,{"$f":"SUM(Odberné_miesta[[#This Row],[JT/1]:[AKU/NT/1]])","v":0},null,null,null,null,null,null,0,null,null,null,null,null,null,0]
[{"$f":"A28+1","v":10},null,null,null,null,null,null,null,null,null,null,null,null,null,null,{"$f":"SUM(J29:O29)","v":0},null,null,null,null,null,null,{"$f":"SUM(Odberné_miesta[[#This Row],[JT/1]:[AKU/NT/1]])","v":0},null,null,null,null,null,null,{"$f":"SUM(X29:AC29)","v":0},null,null,null,null,null,null,{"$f":"SUM(AE29:AJ29)","v":0}]
["Pre pridanie ďalších riadkov, do bunky \"C13\" vpíšte počet riadkou a kliknite na tlačidlo\" Pridaj riadky\"",null,null,null,null,null,null,null,null,{"$f":"SUM(Odberné_miesta[[JT ]])","v":0},{"$f":"SUM(Odberné_miesta[VT])","v":0},{"$f":"SUM(Odberné_miesta[NT])","v":0},{"$f":"SUM(Odberné_miesta[WT])","v":0},{"$f":"SUM(Odberné_miesta[AKU/VT])","v":0},{"$f":"SUM(Odberné_miesta[AKU/NT])","v":0},{"$f":"SUM(Odberné_miesta[Spotreba spolu 22])","v":0},{"$f":"SUM(Odberné_miesta[JT/1])","v":0},{"$f":"SUM(Odberné_miesta[VT/1])","v":0},{"$f":"SUM(Odberné_miesta[NT/1])","v":0},{"$f":"SUM(Odberné_miesta[WT/1])","v":0},{"$f":"SUM(Odberné_miesta[AKU/VT/1])","v":0},{"$f":"SUM(Odberné_miesta[AKU/NT/1])","v":0},{"$f":"SUM(Odberné_miesta[Spotreba spolu 1])","v":0},{"$f":"SUM(Odberné_miesta[JT/2])","v":0},{"$f":"SUM(Odberné_miesta[VT/2])","v":0},{"$f":"SUM(Odberné_miesta[NT/2])","v":0},{"$f":"SUM(Odberné_miesta[WT/2])","v":0},{"$f":"SUM(Odberné_miesta[AKU/VT/2])","v":0},{"$f":"SUM(Odberné_miesta[AKU/NT/2])","v":0},{"$f":"SUM(Odberné_miesta[Spotreba spolu/2])","v":0},{"$f":"SUM(Odberné_miesta[JT/2])","v":0},{"$f":"SUM(Odberné_miesta[VT/2])","v":0},{"$f":"SUM(Odberné_miesta[NT/2])","v":0},{"$f":"SUM(Odberné_miesta[WT/2])","v":0},{"$f":"SUM(Odberné_miesta[AKU/VT/2])","v":0},{"$f":"SUM(Odberné_miesta[AKU/NT/2])","v":0},{"$f":"SUBTOTAL(109,Odberné_miesta[Spotreba spolu/3])","v":0}]

{"sheet":"Nemeraná spotreba","index":3,"n_rows":29,"n_cols":11,"rows_kept":29,"cut":false,"hidden":true,"merged":[[6,2,6,6],[7,2,7,6],[3,1,3,6],[4,1,4,6],[28,0,30,2],[7,13,8,16],[8,2,8,6],[10,2,10,6],[11,2,11,6],[15,0,16,0],[15,1,16,1],[15,2,16,2],[15,3,16,3],[15,4,16,4],[15,9,16,9],[15,5,15,8],[15,10,16,10],[9,2,9,6]]}
[]
[]
[]
[null,"Podklady o spotrebách elektrickej energie\n všetkých odberných miest"]
[null,"podklad pre výberové konanie na obstarávanie elektrickej energie"]
[]
[null,"Odberateľ:",{"$f":"IF(Objednávka!C14=0,\"\",Objednávka!C14)","v":""}]
[null,"Adresa: ",{"$f":"IF(Objednávka!C16=0,\"\",CONCATENATE(Objednávka!C16,\", \",Objednávka!C19,\" \",Objednávka!C18))","v":""}]
[null,"IČO:",{"$f":"IF(Objednávka!G15=0,\"\",Objednávka!G15)","v":""}]
[null,"Podklady vyplnil:"]
[null,"Telefonický kontakt:"]
[null,"Mailový kontakt:"]
[null,"Počet riadkov"]
[]
[]
["P. č.","Adresa miesta spotreby","Názov miesta spotreby","EIC kód","Meno subjektu\n\n( vypisujte, iba ak obstarávate pre viac subjektov)","Súčastný dodávateľ a platné zmluvy.",null,null,null,"Príkon spotrebiča\n(W)\n\n(ak je viac spotrebičov, \ntak uveďte súčet príkonov)","Poznámka"]
[null,null,null,null,null,"Meno\ndodávateľa","Trvanie súčasnej zmluvy do","Výpovedná lehota","Dátum účinnosti novej dodávky"]
["P.č.","Adresa miesta spotreby","Názov miesta spotreby","EIC kód","Meno subjektu","Meno dodávateľa","trvanie zmluvy","výpovedná lehota","Dátum účinosti","Príkon","Poznámka"]
[1]
[2]
[3]
[4]
[5]
[6]
[7]
[8]
[9]
[10]
["Pre pridanie ďalších riadkov, do bunky \"C13\" vpíšte počet riadkou a kliknite na tlačidlo\" Pridaj riadky\""]

{"sheet":"Zoznam subjektov","index":4,"n_rows":61,"n_cols":4,"rows_kept":61,"cut":false,"hidden":true,"merged":[[17,0,19,1],[6,3,13,8],[1,0,1,1]]}
[]
["Zoznam ďalších právnych subjektov"]
[]
["Počet subjektov"]
[]
["Subjekt č.",1]
["Meno subjektu",null,null,"Prosíme o správne a kompletné vyplnenie údajov. \n\nTieto dáta sú potrebné pri zadávaní zákazky \ndo elektronickej platformy\nIS EPVO\na budú poskytnuté víťazovi obstarávania na urýchlenie prípravy zmlúv."]
["Ulica, číslo"]
["Sídlo"]
["PSČ"]
["IČO"]
["Štatutárny zástupca "]
["Telefón"]
["E-mail "]
["WEB"]
["."]
[]
["Pre pridanie ďalších subjektov, do bunky \"B4\" vpíšte počet subjektov a kliknite na tlačidlo\" Pridaj subjekty\""]
[]
[]
[]
[]
[]
[]
[]
[]
[]
[]
[]
[]
[]
[]
[]
[]
[]
[]
[]
[]
[]
[]
[]
[]
[]
[]
[]
[]
[]
[]
["."]
[]
[]
[]
[]
[]
[]
[]
[]
[]
[]
[]
["."]

{"sheet":"Výpočet PHZ","index":5,"n_rows":18,"n_cols":5,"rows_kept":18,"cut":false,"hidden":true,"merged":[[4,2,4,3],[3,2,3,4]]}
[]
[null,null,"Výpočet predpokladanej hodnoty zákazky (PHZ)"]
[]
[null,"Zákazka:",{"$f":"\"Výber dodávateľa elektrickej energie – \"&CONCATENATE(Objednávka!C14,\" \",Objednávka!G12)","v":"Výber dodávateľa elektrickej energie –  "}]
[null,"Verejný obstarávateľ:",{"$f":"IF(Objednávka!C14=0,\"\",Objednávka!C14)","v":""}]
[]
[null,"Celkový objem v MWh","PHZ bez DPH"]
[null,{"$f":"C11+D11+E11","v":0},{"$f":"C15+D15+E15","v":0}]
[]
[null,null,{"$f":"YEAR(Objednávka!H30)","v":2024},{"$f":"YEAR(Objednávka!H30)+1","v":2025},{"$f":"YEAR(Objednávka!H30)+2","v":2026}]
[null,"Objem v MWh",{"$f":"'Verejné osvetlenie'!O31+'Odberné miesta'!W30","v":0},{"$f":"IF(Objednávka!E29>1,'Verejné osvetlenie'!R31+'Odberné miesta'!AD30,0)","v":0},{"$f":"IF(Objednávka!E29=3,'Odberné miesta'!AK30+'Verejné osvetlenie'!U31,0)","v":0}]
[null,"Cena na burze\nEEX-PXE Slovakian Power Futures\nZo dňa 18.8.2023",150.69999999999999,132.26,177.28]
[null,"Poplatky za distribúciu vrátane spotrebnej dane (odhad)",157,157,157]
[null,"Prirážka dodávateľa max. (odhad)",40,40,40]
[null,"PHZ bez DPH",{"$f":"ROUND(SUM(C11*(C12+C13+C14)),2)","v":0},{"$f":"ROUND(SUM(D11*(D12+D13+D14)),2)","v":0},{"$f":"ROUND(SUM(E11*(E12+E13+E14)),2)","v":0}]
[]
[null,"Dňa :","2023-08-21"]
[null,"Vypracoval:","Vladimír Holubovský"]